bitfinex/quotes_ETHUSD_20250214
["timestamp","ask_amount","ask_price","bid_price","bid_amount"]
[1739527921336,12.67732528,2717.6,2717.2,0.14602619]
[1739527921633,3.67993,2717.5,2717.2,0.14602619]
[1739527921903,3.68005,2717.4,2716.9,0.7889]
[1739527922080,3.68013,2717.3,2716.9,0.7889]
[1739527922486,3.67993,2717.5,2717.0,3.68052]
[1739527923278,0.7707,2717.7,2717.2,3.68018]
[1739527923475,4.45029,2717.7,2717.2,3.68024]
[1739527923815,4.45029,2717.7,2717.1,3.68033]
[1739527923975,4.45029,2717.7,2717.2,3.68017]
[1739527924911,3.67987,2717.5,2716.9,4.46943]
[1739527925114,3.67987,2717.5,2716.9,4.96652602]
[1739527925511,4.45029,2717.7,2716.9,4.96659602]
[1739527925917,4.45029,2717.7,2717.1,3.6803]
[1739527926307,4.45029,2717.7,2717.2,0.1459323]
[1739527927394,8.12995,2717.7,2717.2,0.1459323]
[1739527927596,3.67971,2717.6,2717.2,0.1459323]
[1739527927794,3.67985,2717.5,2717.2,0.1459323]
[1739527928016,8.12997,2717.7,2717.2,0.1459323]
[1739527928336,0.7707,2717.7,2717.3,0.14582716]
[1739527928543,4.45028,2717.7,2717.3,0.14582716]
[1739527928839,4.45028,2717.7,2717.2,3.68024]
[1739527929177,4.45028,2717.7,2717.3,0.14582716]
[1739527929634,4.45028,2717.7,2717.1,3.68039]
[1739527929796,3.67977,2717.6,2717.4,0.14565945]
[1739527929996,3.67977,2717.6,2717.1,3.68039]
[1739527930212,3.67977,2717.6,2717.5,0.14555433]
[1739527930406,3.67977,2717.6,2717.1,3.68039]
[1739527931037,3.67977,2717.6,2717.2,0.14586971]
[1739527931333,0.7707,2717.7,2717.2,0.14586971]
[1739527931501,0.7707,2717.7,2717.3,3.68004]
[1739527931892,0.7707,2717.7,2717.4,0.14565945]
[1739527932700,4.45036,2717.7,2717.4,0.14565945]
[1739527933127,4.45036,2717.7,2717.2,3.68022]
[1739527933651,4.45036,2717.7,2717.3,0.14576457]
[1739527933831,4.45036,2717.7,2717.2,3.68022]
[1739527934222,4.45036,2717.7,2717.3,0.14576457]
[1739527934431,4.45036,2717.7,2717.2,3.68022]
[1739527934837,4.45036,2717.7,2717.3,0.14576457]
[1739527935035,3.67978,2717.6,2717.3,0.14576457]
[1739527935243,3.67978,2717.6,2717.1,3.6803]
[1739527935642,4.45036,2717.7,2717.1,3.6803]
[1739527935841,8.13007,2717.7,2717.2,3.82609971]
[1739527936163,4.45036,2717.7,2717.2,3.82609971]
[1739527936363,4.45036,2717.7,2717.2,7.50627971]
[1739527936535,5.31778528,2717.8,2717.3,4.50771]
[1739527936740,4.61696746,2717.9,2717.5,3.67973]
[1739527936741,0.7512,2717.9,2717.5,3.67973]
[1739527937254,0.7512,2717.9,2717.6,0.14544922]
[1739527938051,4.4306,2717.9,2717.4,3.67998]
[1739527938356,4.4306,2717.9,2717.5,0.14552695]
[1739527939410,3.67948,2717.8,2717.3,4.50781]
[1739527939613,3.67965,2717.7,2717.3,0.8277]
[1739527939847,3.67965,2717.7,2717.4,0.14563207]
[1739527940832,4.4306,2717.9,2717.4,0.14563207]
[1739527941220,3.67953,2717.8,2717.4,0.14563207]
[1739527941416,0.7512,2717.9,2717.4,3.82558207]
[1739527941638,4.43055,2717.9,2717.4,3.82558207]
[1739527941835,4.43055,2717.9,2717.4,3.82554207]
[1739527942036,3.67945,2717.8,2717.4,3.82554207]
[1739527942236,3.67945,2717.8,2717.4,0.14563207]
[1739527942960,0.7512,2717.9,2717.4,3.82560207]
[1739527943163,4.43051,2717.9,2717.4,4.73401107]
[1739527943320,4.43051,2717.9,2717.4,1.05404107]
[1739527943526,3.67951,2717.8,2717.4,1.05404107]
[1739527943721,3.67961,2717.7,2717.4,1.05404107]
[1739527943918,4.50205,2717.5,2717.4,0.14563207]
[1739527944193,3.68009,2717.4,2716.8,5.25]
[1739527944416,3.67998,2717.4,2716.8,8.93066]
[1739527944621,0.8222,2717.5,2716.8,5.25]
[1739527944921,0.8222,2717.7,2717.2,3.68018]
[1739527945125,3.67952,2717.8,2717.2,3.68018]
[1739527945521,3.67958,2717.7,2717.1,4.43566]
[1739527945933,3.67985,2717.5,2717.1,0.7553]
[1739527946131,3.68009,2717.4,2716.9,0.7553]
[1739527946367,4.50205,2717.5,2716.9,0.7553]
[1739527946368,3.68014,2717.3,2716.9,0.7553]
[1739527946862,3.68014,2717.3,2716.8,8.9308]
[1739527947165,3.68036,2717.2,2716.8,6.586716]
[1739527947722,3.68036,2717.2,2716.7,0.7553]
[1739527947936,3.68061,2717.0,2716.5,4.43649]
[1739527949440,0.8222,2717.1,2716.5,4.43649]
[1739527949639,4.50267,2717.1,2716.5,4.43638]
[1739527950178,4.50267,2717.1,2716.5,0.7553]
[1739527950342,3.68055,2717.0,2716.5,4.4365]
[1739527950654,8.18318,2717.1,2716.5,4.4365]
[1739527950983,3.68058,2717.0,2716.5,4.4365]
[1739527951180,3.68105,2716.7,2716.1,1.50648379]
[1739527951346,3.68105,2716.7,2716.2,3.6816]
[1739527952040,3.68092,2716.8,2716.3,3.68147]
[1739527952456,3.68095,2716.7,2716.2,3.68157]
[1739527952663,3.68095,2716.7,2716.2,4.56854738]
[1739527952977,3.68095,2716.7,2716.2,0.88697738]
[1739527953378,3.68091,2716.8,2716.2,4.56850738]
[1739527953744,3.68094,2716.7,2716.2,0.88697738]
[1739527954193,3.68091,2716.8,2716.3,3.6814]
[1739527954489,3.68061,2717.0,2716.3,3.6814]
[1739527954644,3.68074,2716.9,2716.3,3.6814]
[1739527954850,0.8222,2717.1,2716.5,4.43896]
[1739527955073,0.8222,2717.1,2716.7,3.68083]
[1739527955382,8.99804528,2717.2,2716.6,3.681]
[1739527955604,3.6804,2717.1,2716.6,3.681]
[1739527955775,4.50442,2717.4,2717.0,0.7578]
[1739527956163,3.67995,2717.5,2717.0,0.7578]
[1739527956361,3.67995,2717.5,2717.1,0.14644051]
[1739527956588,3.67967,2717.7,2717.1,3.82675051]
[1739527956899,3.67966,2717.7,2717.1,3.82675051]
[1739527957202,5.31778528,2717.8,2717.3,3.68004]
[1739527957509,3.6794,2717.9,2717.3,3.68004]
[1739527957694,3.67958,2717.7,2717.4,0.14607031]
[1739527958062,3.67958,2717.7,2717.2,0.8224]
[1739527958604,3.67979,2717.6,2717.3,0.14606195]
[1739527958800,4.047538,2717.7,2717.2,0.8224]
[1739527958997,3.67945,2717.8,2717.4,0.14583945]
[1739527959246,3.67945,2717.8,2717.3,3.68012]
[1739527959499,3.6796,2717.7,2717.5,0.14573433]
[1739527959703,3.67935,2717.9,2717.6,0.14567617]
[1739527959889,3.67952,2717.8,2717.6,0.14567617]
[1739527960068,3.67952,2717.8,2717.7,0.14557106]
[1739527960588,3.67952,2717.8,2717.2,4.50253]
[1739527960589,3.67975,2717.6,2717.2,0.8224]
[1739527960790,3.67962,2717.7,2717.2,1.640733]
[1739527960965,7.35932,2717.7,2717.2,1.640733]
[1739527961304,3.67962,2717.7,2717.2,1.640733]
[1739527961507,3.67962,2717.7,2717.2,5.320973]
[1739527961806,3.67962,2717.7,2717.2,1.640733]
[1739527962101,3.67939,2717.9,2717.2,1.640733]
[1739527962312,3.6796,2717.7,2717.2,1.640733]
[1739527963630,3.6796,2717.7,2717.3,0.5321053]
[1739527965637,3.67947,2717.8,2717.3,4.2122053]
[1739527965831,3.67938,2717.9,2717.3,4.2122053]
[1739527966038,3.67947,2717.8,2717.3,0.5321053]
[1739527966239,3.67947,2717.8,2717.3,4.2122053]
[1739527966440,3.67957,2717.8,2717.3,0.5321053]
[1739527966771,3.67957,2717.8,2717.4,0.58530183]
[1739527966940,0.7543,2718.0,2717.2,5.320913]
[1739527966941,3.67971,2717.7,2717.2,0.8224]
[1739527968933,7.35938,2717.7,2717.2,0.8224]
[1739527969137,3.6795,2717.8,2717.3,3.68008]
[1739527969297,3.67959,2717.7,2717.2,0.8224]
[1739527969499,3.67959,2717.7,2717.2,4.50265]
[1739527969727,3.67959,2717.7,2717.2,4.81639]
[1739527970139,3.67972,2717.6,2717.2,0.685875]
[1739527971306,3.67972,2717.6,2717.3,0.1458037]
[1739527971721,3.67972,2717.6,2717.4,0.14569858]
[1739527971924,3.67985,2717.5,2716.9,3.68065]
[1739527972204,3.67985,2717.5,2716.8,5.25]
[1739527972205,3.68013,2717.3,2717.0,0.14613478]
[1739527972541,0.451045,2717.5,2717.0,0.14613478]
[1739527972542,4.130975,2717.5,2717.0,3.68044]
[1739527972701,3.67993,2717.5,2717.1,0.91524919]
[1739527972905,3.67958,2717.7,2717.1,0.91524919]
[1739527973132,3.6802,2717.3,2717.1,0.91524919]
[1739527973729,3.6802,2717.3,2717.1,0.14604919]
[1739527973928,3.6802,2717.3,2716.9,0.7692]
[1739527974129,3.6802,2717.3,2717.0,0.14618955]
[1739527974536,0.8306,2717.4,2717.0,0.14618955]
[1739527974809,4.51062,2717.4,2717.0,0.14618955]
[1739527975945,3.68027,2717.2,2717.0,0.14618955]
[1739527976244,3.68039,2717.1,2716.8,0.7692]
[1739527977864,3.68039,2717.1,2716.6,4.44315]
[1739527978063,7.3604,2717.3,2716.7,3.68085]
[1739527978268,1.649642,2717.4,2716.9,3.68064]
[1739527978469,5.329672,2717.4,2716.9,3.68064]
[1739527979734,4.5810912,2717.3,2716.7,3.68083]
[1739527979936,3.68013,2717.3,2716.7,3.68083]
[1739527980441,0.8306,2717.4,2716.6,0.7621]
[1739527980646,3.68054,2717.0,2716.6,0.7621]
[1739527980874,3.68029,2717.2,2716.7,3.68083]
[1739527981168,3.68029,2717.2,2716.7,3.68092]
[1739527981815,4.51059,2717.4,2716.6,0.7621]
[1739527981966,4.131259,2717.3,2716.7,3.68085]
[1739527982271,3.68074,2716.9,2716.6,0.7621]
[1739527982503,0.7909,2717.0,2716.6,4.44314]
[1739527982699,3.68042,2717.1,2716.6,4.44314]
[1739527982901,0.7909,2717.2,2716.9,3.68057]
[1739527983179,5.76884428,2717.3,2716.9,3.68057]
[1739527983382,9.44897428,2717.3,2716.9,3.68057]
[1739527983685,9.44897428,2717.3,2716.7,3.68085]
[1739527983833,9.44897428,2717.3,2716.8,3.68079]
[1739527984034,5.76884428,2717.3,2716.9,4.43698]
[1739527984232,5.76884428,2717.3,2717.0,3.6805]
[1739527984471,5.31778528,2717.3,2717.0,3.6805]
[1739527984837,5.31778528,2717.3,2717.0,3.68045]
[1739527985333,5.31778528,2717.3,2717.0,7.3609]
[1739527985550,5.31778528,2717.3,2717.0,3.68045]
[1739527985981,5.31778528,2717.3,2717.0,7.3609]
[1739527986151,5.31778528,2717.3,2717.0,3.68045]
[1739527986353,5.31778528,2717.3,2717.1,0.14621742]
[1739527986969,5.31778528,2717.3,2717.1,3.82655742]
[1739527987455,0.7652,2717.6,2717.2,3.68025]
[1739527987890,3.67963,2717.7,2717.3,0.14597584]
[1739527988261,3.67972,2717.6,2717.0,3.68044]
[1739527988452,3.67972,2717.6,2717.1,3.68036]
[1739527988656,3.67972,2717.6,2717.1,3.82654612]
[1739527988893,1.64421453,2717.7,2717.1,3.82654612]
[1739527989096,3.67975,2717.6,2717.1,3.82654612]
[1739527989336,1.64421453,2717.7,2717.2,3.68016]
[1739527989605,5.32386453,2717.7,2717.2,3.68016]
[1739527989758,5.32386453,2717.7,2717.3,0.14591715]
[1739527990272,5.32386453,2717.7,2717.4,0.14581203]
[1739527990656,5.32386453,2717.7,2717.0,3.68047]
[1739527990657,3.67972,2717.6,2717.0,3.68042]
[1739527990856,3.67972,2717.6,2717.5,0.14570691]
[1739527991195,3.67972,2717.6,2717.1,3.68031]
[1739527991394,5.32386453,2717.7,2717.2,0.14602229]
[1739527992709,3.67985,2717.5,2717.2,0.14602229]
[1739527992998,3.68005,2717.4,2717.3,0.14595237]
[1739527993204,4.048055,2717.4,2717.3,0.14595237]
[1739527993412,4.048055,2717.4,2716.6,3.68097]
[1739527993413,9.36591028,2717.4,2716.6,3.68097]
[1739527993579,0.7652,2717.1,2716.7,0.1465872]
[1739527993774,3.68062,2717.0,2716.7,0.1465872]
[1739527993971,3.6808,2716.8,2716.7,0.1465872]
[1739527994174,3.6808,2716.8,2716.3,0.7564]
[1739527994423,3.6808,2716.8,2716.4,0.14691058]
[1739527994715,3.68095,2716.7,2716.4,0.14691058]
[1739527995433,0.7652,2716.9,2716.4,0.14691058]
[1739527995572,3.6812,2716.5,2716.0,0.7564]
[1739527995767,3.68135,2716.4,2716.1,0.14722622]
[1739527996286,1.501427,2716.5,2716.1,0.14722622]
[1739527996495,1.501427,2716.5,2716.1,3.82895622]
[1739527996677,0.7652,2716.5,2716.1,3.82894622]
[1739527997103,4.44622,2716.7,2716.1,3.82894622]
[1739527997982,3.68109,2716.6,2716.1,3.82891622]
[1739527998189,3.68109,2716.6,2716.1,0.14722622]
[1739527999077,3.68123,2716.5,2716.1,0.14722622]
[1739527999292,3.68109,2716.6,2716.1,0.14722622]
[1739527999497,0.444629,2716.5,2716.1,0.14722622]
[1739527999800,4.125829,2716.5,2716.1,0.14722622]
[1739528000002,0.444629,2716.5,2716.1,0.14722622]
[1739528000318,8.99866528,2716.8,2716.2,3.68149]
[1739528000511,8.99866528,2716.8,2716.1,0.14722622]
[1739528000729,3.68108,2716.6,2716.3,0.14721147]
[1739528002509,3.68137,2716.4,2716.1,0.1474219]
[1739528003386,5.77645453,2716.6,2716.1,0.1474219]
[1739528003621,0.57764545,2716.5,2716.1,0.1474219]
[1739528003827,3.68136,2716.4,2716.1,0.1474219]
[1739528004533,0.57764545,2716.5,2716.1,0.1474219]
[1739528004694,4.25891545,2716.5,2716.1,0.1474219]
[1739528004893,3.68135,2716.4,2716.1,0.1474219]
[1739528005096,8.366347,2716.4,2716.1,0.1474219]
[1739528005321,4.684897,2716.4,2716.1,0.1474219]
[1739528005521,8.366367,2716.4,2716.1,0.1474219]
[1739528005707,3.68151,2716.3,2715.8,0.7608]
[1739528005919,3.68151,2716.3,2715.6,0.73933516]
[1739528005920,4.50887,2716.3,2716.2,0.14731668]
[1739528006116,3.68181,2716.1,2715.6,0.7608]
[1739528006295,3.6819,2716.0,2715.6,0.7608]
[1739528006491,3.68215,2715.8,2715.4,5.836]
[1739528007804,3.68215,2715.8,2715.3,4.44356]
[1739528009648,3.68215,2715.8,2715.3,0.7608]
[1739528009849,3.68215,2715.8,2715.3,4.44362]
[1739528010533,3.68215,2715.8,2715.3,0.7608]
[1739528010739,4.5013,2715.8,2715.3,0.7608]
[1739528010937,4.5013,2715.8,2715.3,4.44362]
[1739528012210,4.5013,2715.8,2715.3,4.44355]
[1739528013534,0.81915,2715.8,2715.3,4.44355]
[1739528014041,4.50131,2715.8,2715.3,4.44355]
[1739528014624,0.81915,2715.8,2715.4,3.68257]
[1739528015020,0.81915,2715.8,2715.3,8.1263]
[1739528015220,4.50132,2715.8,2715.3,4.44355]
[1739528015643,0.81915,2715.8,2715.3,4.44355]
[1739528015850,4.49625,2716.1,2715.5,3.68256]
[1739528016022,4.49625,2716.1,2715.6,3.68241]
[1739528016448,3.68195,2716.0,2715.7,0.14819135]
[1739528016650,3.68195,2716.0,2715.5,3.68253]
[1739528016836,3.68195,2716.0,2715.6,0.14829661]
[1739528017053,0.81782,2715.9,2715.6,0.14829661]
[1739528018168,4.49992,2715.9,2715.6,0.14829661]
[1739528018523,4.49992,2715.9,2715.4,3.68265]
[1739528018746,3.68215,2715.8,2715.7,0.14819135]
[1739528018953,3.68215,2715.8,2715.3,8.12629]
[1739528018954,0.8145,2715.7,2715.3,8.12629]
[1739528019249,0.8145,2715.7,2715.3,4.44353]
[1739528019461,0.8145,2715.7,2715.1,3.68299]
[1739528019462,3.68244,2715.6,2715.1,3.68299]
[1739528020248,1.345947,2715.7,2715.0,0.7579]
[1739528020446,0.8145,2715.7,2714.8,4.44141]
[1739528020669,0.8145,2715.3,2714.8,4.44141]
[1739528021542,4.49733,2715.3,2714.8,0.7579]
[1739528022068,4.49733,2715.3,2714.8,4.4414]
[1739528022227,3.68297,2715.2,2714.8,3.6835]
[1739528022426,3.68297,2715.2,2714.6,3.68378]
[1739528022661,3.68297,2715.2,2714.7,3.68353]
[1739528022849,4.500995,2715.2,2714.7,3.68353]
[1739528023028,3.68325,2715.0,2714.1,0.7579]
[1739528023231,3.68325,2715.0,2714.1,3.7579]
[1739528023428,3.68325,2715.0,2714.4,3.68396]
[1739528023666,3.68325,2715.0,2714.5,3.68391]
[1739528024571,4.49762,2715.1,2714.5,3.68391]
[1739528024773,5.3974875,2715.1,2714.5,3.68391]
[1739528025569,1.7143675,2715.1,2714.8,3.68351]
[1739528025780,0.8145,2715.3,2714.7,3.68364]
[1739528025968,4.4974,2715.3,2714.7,7.36718]
[1739528026163,4.4974,2715.3,2714.7,7.3671]
[1739528026904,4.4974,2715.3,2714.8,3.6835]
[1739528027188,5.315402,2715.3,2714.7,3.68354]
[1739528027346,3.683,2715.2,2714.7,3.68354]
[1739528027999,3.68312,2715.1,2714.6,3.68377]
[1739528028205,3.68312,2715.1,2714.4,3.68405]
[1739528028206,0.8145,2715.0,2714.4,3.68405]
[1739528028478,7.36687,2714.9,2714.3,4.44205]
[1739528028786,3.68358,2714.8,2714.2,13.37636]
[1739528029078,0.8185,2714.4,2714.0,3.68459]
[1739528029664,0.8185,2714.4,2713.9,0.7714]
[1739528030180,4.50265,2714.4,2713.9,0.7714]
[1739528030398,4.50265,2714.4,2713.8,3.68478]
[1739528030548,5.321316,2714.4,2713.8,7.36956]
[1739528030751,5.321316,2714.4,2713.8,3.68478]
[1739528031011,5.321316,2714.4,2713.8,3.68476]
[1739528031170,5.321316,2714.4,2713.8,7.36955]
[1739528031371,1.637166,2714.4,2713.9,0.15059651]
[1739528031680,1.637166,2714.4,2714.0,3.68459]
[1739528031916,1.637166,2714.4,2714.1,0.15052295]
[1739528032097,0.8185,2714.7,2714.1,0.15052295]
[1739528032400,0.8185,2714.7,2714.4,3.68395]
[1739528032707,0.8185,2714.7,2714.5,0.15012894]
[1739528033201,0.8185,2714.7,2714.1,8.14011]
[1739528033367,4.50214,2714.7,2714.6,0.15030581]
[1739528033562,4.50214,2714.7,2714.1,4.45574]
[1739528033780,4.50214,2714.7,2714.6,0.15030581]
[1739528033969,3.68382,2714.6,2714.0,3.68455]
[1739528034165,7.36771,2714.6,2714.0,3.68455]
[1739528034356,3.68382,2714.6,2714.0,3.68455]
[1739528034749,5.03419053,2714.6,2714.0,3.68455]
[1739528034953,3.6844,2714.2,2713.7,0.7714]
[1739528035284,3.68461,2714.0,2713.5,4.45659]
[1739528035449,0.8185,2714.1,2713.6,3.6851]
[1739528035655,4.50304,2714.1,2713.5,4.45659]
[1739528035853,1.637244,2714.1,2713.5,4.45659]
[1739528036095,5.321784,2714.1,2713.6,3.68513]
[1739528036367,3.68464,2714.0,2713.5,0.7714]
[1739528036574,3.68464,2714.0,2713.5,4.45658]
[1739528036781,0.9006284,2714.0,2713.4,0.05367566]
[1739528036960,3.68495,2713.8,2713.4,0.05367566]
[1739528037181,4.50352,2713.7,2713.4,0.05367566]
[1739528037492,0.8185,2713.9,2713.4,7.42437566]
[1739528037796,0.8185,2713.9,2713.4,3.73900566]
[1739528038021,1.268817,2713.9,2713.4,0.05367566]
[1739528038204,1.268817,2713.9,2713.4,3.73905566]
[1739528038400,1.268817,2713.9,2713.5,3.68523]
[1739528038610,1.268817,2713.9,2713.4,7.42438566]
[1739528039042,1.268817,2713.9,2713.5,3.68516]
[1739528040582,1.268817,2713.9,2713.8,3.68486]
[1739528040795,6.13628528,2714.2,2713.9,3.68472]
[1739528040994,0.8185,2714.2,2713.9,3.68472]
[1739528041618,6.13628528,2714.5,2714.1,3.68433]
[1739528041928,0.8185,2714.5,2714.2,3.68424]
[1739528042084,0.8185,2714.5,2714.1,3.68433]
[1739528043221,0.8185,2714.5,2714.0,3.68448]
[1739528043395,4.50242,2714.5,2713.9,4.45605]
[1739528043603,1.637108,2714.5,2714.0,3.6845]
[1739528044833,1.637108,2714.5,2713.9,4.45605]
[1739528045122,4.45066,2714.8,2714.1,3.68445]
[1739528045328,4.45066,2714.8,2714.3,3.6841]
[1739528045485,3.68386,2714.6,2714.1,3.68436]
[1739528045690,4.45068,2714.8,2714.2,3.68424]
[1739528046001,4.45068,2714.8,2714.3,3.68409]
[1739528046325,1.1134,2714.8,2714.4,0.15066155]
[1739528046530,3.68332,2715.0,2714.4,0.15066155]
[1739528046825,3.68339,2714.9,2714.4,3.83470155]
[1739528047380,3.68339,2714.9,2714.4,0.15066155]
[1739528047585,3.68363,2714.8,2714.4,0.15066155]
[1739528047819,3.68363,2714.8,2714.2,3.6842]
[1739528047820,3.68364,2714.7,2714.3,0.55]
[1739528048022,3.68339,2714.9,2714.5,0.15052091]
[1739528048221,4.051879,2714.8,2714.4,0.15061058]
[1739528048387,4.051879,2714.8,2714.6,0.15039989]
[1739528048587,4.051879,2714.8,2714.5,0.15050523]
[1739528048926,4.051879,2714.8,2714.6,0.15039989]
[1739528049103,4.051879,2714.8,2714.7,0.55]
[1739528049300,4.818979,2714.8,2714.7,0.15029455]
[1739528049505,3.68384,2714.6,2714.0,3.68458]
[1739528049728,7.3677,2714.6,2714.1,0.700911]
[1739528050288,3.68401,2714.5,2714.1,0.150911]
[1739528050513,3.68401,2714.5,2713.9,4.45603]
[1739528050725,4.5341539,2714.6,2714.3,0.55]
[1739528051102,8.2180339,2714.6,2714.4,0.1505949]
[1739528051314,3.68391,2714.5,2714.4,0.1505949]
[1739528051816,4.5341539,2714.6,2714.4,0.1505949]
[1739528052011,3.6837,2714.7,2714.5,0.55]
[1739528052549,3.6837,2714.7,2714.6,0.1503842]
[1739528054706,3.68405,2714.5,2713.9,4.4561]
[1739528054909,3.68405,2714.5,2714.1,0.55]
[1739528055228,3.68406,2714.4,2714.1,0.55]
[1739528055533,3.68406,2714.4,2714.3,0.55]
[1739528055709,3.68392,2714.5,2714.3,0.55]
[1739528056035,3.68392,2714.5,2714.4,0.15051258]
[1739528056233,4.497402,2714.5,2714.4,0.15051258]
[1739528056995,0.813482,2714.5,2714.4,0.15051258]
[1739528057193,0.7671,2714.7,2714.5,0.55]
[1739528057394,4.45075,2714.7,2714.5,0.55]
[1739528057590,0.7671,2714.7,2714.6,0.15034501]
[1739528059722,3.68339,2714.9,2714.6,0.15034501]
[1739528059898,4.44135,2715.0,2714.7,0.55]
[1739528060099,0.7581,2715.0,2714.8,3.83357162]
[1739528060395,0.7581,2715.0,2714.8,0.15007162]
[1739528061535,0.7581,2715.2,2714.9,0.55]
[1739528061905,0.7581,2715.2,2715.0,0.14985707]
[1739528062113,0.18171897,2715.6,2715.2,0.55]
[1739528062114,0.7581,2715.6,2715.2,0.55]
[1739528062355,1.73391153,2715.6,2715.3,0.14954118]
[1739528062511,5.41633153,2715.6,2715.3,0.14954118]
[1739528064963,3.68269,2715.4,2715.3,0.14954118]
[1739528065459,8.12307,2715.6,2715.3,0.14954118]
[1739528066030,3.68258,2715.5,2715.3,0.14954118]
[1739528066230,4.44079,2715.4,2715.3,0.14954118]
[1739528066530,0.7581,2715.4,2714.5,4.44683]
[1739528066859,3.68323,2715.1,2714.5,4.44682]
[1739528067060,0.7581,2715.0,2714.6,0.15021564]
[1739528067236,4.44137,2715.0,2714.6,0.15021564]
[1739528067625,3.68347,2714.9,2714.6,0.15021564]
[1739528067955,3.68347,2714.9,2714.3,7.36822]
[1739528068156,3.68347,2714.9,2714.7,0.1497105]
[1739528068361,4.5327753,2714.9,2714.4,0.55]
[1739528068564,4.5327753,2714.9,2714.8,0.14971883]
[1739528068742,4.5327753,2714.9,2714.4,4.23401]
[1739528068743,0.8493053,2714.9,2714.4,3.68398]
[1739528069074,4.44143,2715.0,2714.5,0.55]
[1739528069269,4.44143,2715.0,2714.6,0.14994125]
[1739528072964,0.7581,2715.0,2714.7,0.55]
[1739528073308,5.31778528,2715.3,2715.2,0.55]
[1739528073577,0.7581,2715.7,2715.2,4.38230463]
[1739528073878,0.60758853,2715.6,2715.2,4.38230463]
[1739528074102,4.29009853,2715.6,2715.2,0.69934463]
[1739528074948,0.60758853,2715.6,2715.2,0.69934463]
[1739528075482,4.29001853,2715.6,2715.2,0.69934463]
[1739528078510,5.31778528,2715.8,2715.6,3.68241]
[1739528078660,8.15382,2716.2,2715.7,0.69877516]
[1739528078865,3.68176,2716.1,2715.7,0.69877516]
[1739528080400,4.47209,2716.2,2715.7,4.38100516]
[1739528080601,4.47209,2716.2,2715.7,0.69877516]
[1739528080602,8.15381,2716.2,2715.7,0.69877516]
[1739528080802,4.47209,2716.2,2715.7,0.69877516]
[1739528081003,4.47209,2716.2,2715.7,4.81917468]
[1739528081874,4.47209,2716.2,2715.9,0.55]
[1739528081875,0.7904,2716.2,2715.9,0.55]
[1739528082073,3.68153,2716.3,2716.0,0.14828307]
[1739528082303,4.47178,2716.4,2716.0,0.14828307]
[1739528082516,3.68163,2716.2,2715.9,0.55]
[1739528082716,3.68163,2716.2,2716.0,0.1480911]
[1739528084620,3.68082,2716.8,2716.3,0.55]
[1739528084983,3.68096,2716.7,2716.4,0.1476389]
[1739528085314,3.68107,2716.6,2716.4,0.1476389]
[1739528085614,3.6812,2716.5,2716.4,0.1476389]
[1739528086516,0.7904,2716.7,2716.4,0.1476389]
[1739528086890,3.68108,2716.6,2716.4,0.1476389]
[1739528087099,3.6812,2716.5,2716.4,0.1476389]
[1739528087819,3.68108,2716.6,2716.4,0.1476389]
[1739528087975,7.36226,2716.6,2716.4,0.1476389]
[1739528088175,3.68108,2716.6,2716.4,0.1476389]
[1739528089412,4.496314,2716.6,2716.4,0.1476389]
[1739528089622,3.6812,2716.5,2716.4,0.1476389]
[1739528089801,3.68156,2716.3,2715.8,0.7705]
[1739528089995,3.68156,2716.3,2715.9,0.55]
[1739528090201,3.68155,2716.3,2715.9,0.69252738]
[1739528090483,0.7727,2716.4,2715.9,0.69252738]
[1739528090686,3.68095,2716.7,2716.2,0.55]
[1739528090919,3.68095,2716.7,2716.3,0.14211429]
[1739528091121,3.68095,2716.7,2716.2,0.55]
[1739528091327,3.68095,2716.7,2716.3,0.14211429]
[1739528091530,0.7727,2716.8,2716.3,3.68136]
[1739528091700,3.18267854,2717.3,2716.5,4.23117]
[1739528091701,4.45323,2717.0,2716.5,4.23117]
[1739528091901,0.7727,2717.0,2716.6,3.82291546]
[1739528092086,3.68039,2717.1,2716.6,3.82291546]
[1739528093103,3.68039,2717.1,2716.6,0.14184546]
[1739528093490,3.68039,2717.1,2716.6,3.82288546]
[1739528093994,7.36087,2717.1,2716.6,3.82288546]
[1739528094195,3.68062,2717.0,2716.6,0.14184546]
[1739528094422,3.68049,2717.1,2716.6,0.14184546]
[1739528094670,3.68061,2717.0,2716.6,0.14184546]
[1739528094820,3.68049,2717.1,2716.6,3.82286546]
[1739528094997,3.68041,2717.1,2716.6,3.82287546]
[1739528095198,6.09048528,2717.2,2716.6,3.82287546]
[1739528095459,3.68046,2717.1,2716.6,3.82287546]
[1739528095725,3.68046,2717.1,2716.6,0.14184546]
[1739528096233,7.36094,2717.1,2716.6,0.14184546]
[1739528096418,3.68046,2717.1,2716.6,0.14184546]
[1739528096617,0.18267854,2717.3,2716.6,0.14184546]
[1739528096618,3.68023,2717.3,2716.8,4.46951]
[1739528096817,3.68023,2717.3,2716.8,0.7888]
[1739528097008,3.68022,2717.3,2716.9,0.14133903]
[1739528097535,3.68026,2717.2,2716.9,0.14133903]
[1739528098335,3.68046,2717.1,2716.9,0.14133903]
[1739528099926,7.36096,2717.1,2716.9,0.14133903]
[1739528100100,3.68052,2717.0,2716.9,0.14133903]
[1739528100296,5.189318,2717.0,2716.9,0.14133903]
[1739528100496,3.681,2716.7,2716.3,0.7888]
[1739528100712,3.68075,2716.9,2716.4,3.82280707]
[1739528101001,3.68075,2716.9,2716.4,3.82275707]
[1739528101339,3.68058,2717.0,2716.5,3.68112]
[1739528101525,3.68058,2717.0,2716.6,0.93007669]
[1739528101912,3.68035,2717.2,2716.7,3.68092]
[1739528102107,3.6804,2717.1,2716.8,0.14113255]
[1739528102344,3.6804,2717.1,2716.6,0.7888]
[1739528102644,3.6804,2717.1,2716.7,0.14123772]
[1739528103226,3.6804,2717.1,2716.7,0.97045949]
[1739528103430,9.77069528,2717.3,2716.7,4.65138949]
[1739528103431,3.68032,2717.2,2716.7,4.65138949]